[Event "December 5 Late 2023"]
[Site "https://www.chess.com"]
[Date "2023.12.05"]
[Round "7"]
[White "Boyer, Mahel"]
[Black "Kraiouchkine, Nikita"]
[Result "0-1"]
[Board "68"]
[TimeControl "180+1"]
[WhiteFideId "45102422"]
[BlackFideId "2607140"]
[WhiteElo "2670"]
[BlackElo "2469"]
[WhiteTeam "FRA"]
[BlackTeam "CAN"]
[WhiteClock "0:00:04"]
[BlackClock "0:00:47"]

1. Nf3 {[%clk 0:01:00]}  d5 {[%clk 0:02:59]} 2. b3 {[%clk 0:00:48]}  Nf6 {[%clk 0:02:58]} 3. Bb2 {[%clk 0:00:47]}  e6 {[%clk 0:02:56]} 4. d3 {[%clk 0:00:12]}  b6 {[%clk 0:02:54]} 5. Rg1 {[%clk 0:00:11]}  Bb7 {[%clk 0:02:54]} 6. g4 {[%clk 0:00:11]}  c5 {[%clk 0:02:47]} 7. g5 {[%clk 0:00:11]}  Nfd7 {[%clk 0:02:47]} 8. e3 {[%clk 0:00:09]}  Nc6 {[%clk 0:02:41]} 9. c4 {[%clk 0:00:06]}  Qc7 {[%clk 0:02:40]} 10. Nc3 {[%clk 0:00:05]}  Nce5 {[%clk 0:02:29]} 11. Bg2 {[%clk 0:00:03]}  Ng6 {[%clk 0:02:16]} 12. cxd5 {[%clk 0:00:03]}  exd5 {[%clk 0:02:14]} 13. h4 {[%clk 0:00:04]}  d4 {[%clk 0:02:08]} 14. exd4 {[%clk 0:00:03]}  cxd4 {[%clk 0:02:07]} 15. Nb5 {[%clk 0:00:03]}  Bb4+ {[%clk 0:02:02]} 16. Kf1 {[%clk 0:00:03]}  Qf4 {[%clk 0:02:00]} 17. Qe2+ {[%clk 0:00:02]}  Kf8 {[%clk 0:01:57]} 18. a3 {[%clk 0:00:02]}  Be7 {[%clk 0:01:55]} 19. Re1 {[%clk 0:00:01]}  Re8 {[%clk 0:01:51]} 20. h5 {[%clk 0:00:01]}  Bxf3 {[%clk 0:01:45]} 21. Bxf3 {[%clk 0:00:01]}  Nh4 {[%clk 0:01:45]} 22. Nxd4 {[%clk 0:00:01]}  Nxf3 {[%clk 0:01:38]} 23. Qxf3 {[%clk 0:00:01]}  Qxf3 {[%clk 0:01:25]} 24. Nxf3 {[%clk 0:00:02]}  f6 {[%clk 0:01:26]} 25. h6 {[%clk 0:00:01]}  gxh6 {[%clk 0:01:25]} 26. gxh6 {[%clk 0:00:02]}  Rg8 {[%clk 0:01:24]} 27. Rxg8+ {[%clk 0:00:02]}  Kxg8 {[%clk 0:01:24]} 28. Nh4 {[%clk 0:00:02]}  Kf7 {[%clk 0:01:23]} 29. Nf5 {[%clk 0:00:02]}  Bf8 {[%clk 0:01:24]} 30. Rxe8 {[%clk 0:00:02]}  Kxe8 {[%clk 0:01:25]} 31. d4 {[%clk 0:00:02]}  Kf7 {[%clk 0:01:25]} 32. d5 {[%clk 0:00:02]}  Kg6 {[%clk 0:01:26]} 33. Nd4 {[%clk 0:00:01]}  Bxh6 {[%clk 0:01:24]} 34. Nc6 {[%clk 0:00:01]}  a5 {[%clk 0:01:23]} 35. Ke2 {[%clk 0:00:02]}  Bf8 {[%clk 0:01:21]} 36. Kd3 {[%clk 0:00:02]}  Bc5 {[%clk 0:01:20]} 37. f4 {[%clk 0:00:02]}  Kf5 {[%clk 0:01:21]} 38. Bc1 {[%clk 0:00:02]}  h5 {[%clk 0:01:20]} 39. b4 {[%clk 0:00:01]}  axb4 {[%clk 0:01:19]} 40. axb4 {[%clk 0:00:02]}  Bd6 {[%clk 0:01:19]} 41. Nd4+ {[%clk 0:00:02]}  Kg4 {[%clk 0:01:19]} 42. Ke4 {[%clk 0:00:03]}  h4 {[%clk 0:01:18]} 43. Nf5 {[%clk 0:00:03]}  h3 {[%clk 0:01:15]} 44. Ne3+ {[%clk 0:00:03]}  Kg3 {[%clk 0:01:13]} 45. Kf5 {[%clk 0:00:04]}  Kf3 {[%clk 0:01:06]} 46. Ng4 {[%clk 0:00:04]}  Bxb4 {[%clk 0:01:03]} 47. Bb2 {[%clk 0:00:03]}  Be7 {[%clk 0:00:55]} 48. Bd4 {[%clk 0:00:02]}  b5 {[%clk 0:00:55]} 49. Nf2 {[%clk 0:00:01]}  h2 {[%clk 0:00:51]} 50. Ke6 {[%clk 0:00:01]}  Bc5 {[%clk 0:00:52]} 51. Kxd7 {[%clk 0:00:01]}  Bxd4 {[%clk 0:00:52]} 52. Nh1 {[%clk 0:00:01]}  Kg2 {[%clk 0:00:52]} 53. Kc6 {[%clk 0:00:02]}  Kxh1 {[%clk 0:00:51]} 54. d6 {[%clk 0:00:02]}  Kg1 {[%clk 0:00:51]} 55. d7 {[%clk 0:00:03]}  h1=Q+ {[%clk 0:00:52]} 56. Kc7 {[%clk 0:00:03]}  Qh7 {[%clk 0:00:50]} 57. Kc8 {[%clk 0:00:03]}  Bb6 {[%clk 0:00:48]} 58. d8=Q {[%clk 0:00:04]}  Bxd8 {[%clk 0:00:48]} 59. f5 {[%clk 0:00:04]}  Qc7# {[%clk 0:00:47]} 0-1

[Event "December 5 Late 2023"]
[Site "https://www.chess.com"]
[Date "2023.12.05"]
[Round "7"]
[White "Thomforde-Toates, Noah"]
[Black "Rama, Tejas"]
[Result "1/2-1/2"]
[Board "69"]
[TimeControl "180+1"]
[WhiteFideId "30951992"]
[BlackFideId "30907381"]
[WhiteElo "2649"]
[BlackElo "2463"]
[WhiteTeam "USA"]
[BlackTeam "USA"]
[WhiteClock "0:00:07"]
[BlackClock "0:00:16"]

1. d4 {[%clk 0:02:59]}  Nf6 {[%clk 0:02:59]} 2. Nc3 {[%clk 0:02:59]}  d5 {[%clk 0:02:58]} 3. Bf4 {[%clk 0:02:59]}  c5 {[%clk 0:02:58]} 4. e4 {[%clk 0:02:59]}  Nxe4 {[%clk 0:02:57]} 5. Nxe4 {[%clk 0:02:58]}  dxe4 {[%clk 0:02:58]} 6. dxc5 {[%clk 0:02:58]}  Qxd1+ {[%clk 0:02:57]} 7. Rxd1 {[%clk 0:02:58]}  Nc6 {[%clk 0:02:57]} 8. Bb5 {[%clk 0:02:53]}  Bd7 {[%clk 0:02:48]} 9. Ne2 {[%clk 0:02:51]}  O-O-O {[%clk 0:02:25]} 10. Nc3 {[%clk 0:02:29]}  Nb4 {[%clk 0:01:49]} 11. Bxd7+ {[%clk 0:02:06]}  Rxd7 {[%clk 0:01:43]} 12. Rxd7 {[%clk 0:02:06]}  Kxd7 {[%clk 0:01:44]} 13. Nxe4 {[%clk 0:01:53]}  Nxc2+ {[%clk 0:01:37]} 14. Kd2 {[%clk 0:01:51]}  Nb4 {[%clk 0:01:35]} 15. Nc3 {[%clk 0:01:50]}  Na6 {[%clk 0:01:27]} 16. Be3 {[%clk 0:01:25]}  e6 {[%clk 0:01:23]} 17. Na4 {[%clk 0:01:18]}  Kc6 {[%clk 0:01:22]} 18. Ke2 {[%clk 0:01:10]}  Kb5 {[%clk 0:01:19]} 19. Nc3+ {[%clk 0:01:10]}  Kc6 {[%clk 0:01:17]} 20. Rc1 {[%clk 0:01:09]}  Be7 {[%clk 0:01:12]} 21. a3 {[%clk 0:01:08]}  Bf6 {[%clk 0:00:45]} 22. b4 {[%clk 0:01:07]}  Bxc3 {[%clk 0:00:41]} 23. Rxc3 {[%clk 0:01:08]}  Rd8 {[%clk 0:00:38]} 24. h4 {[%clk 0:00:39]}  Kb5 {[%clk 0:00:34]} 25. g3 {[%clk 0:00:36]}  Nb8 {[%clk 0:00:30]} 26. Bf4 {[%clk 0:00:30]}  Nc6 {[%clk 0:00:28]} 27. Bd6 {[%clk 0:00:30]}  a5 {[%clk 0:00:26]} 28. bxa5 {[%clk 0:00:29]}  Nxa5 {[%clk 0:00:21]} 29. Rc1 {[%clk 0:00:27]}  Ka4 {[%clk 0:00:16]} 30. Rb1 {[%clk 0:00:21]}  Nb3 {[%clk 0:00:14]} 31. Be7 {[%clk 0:00:12]}  Rd5 {[%clk 0:00:12]} 32. Bf8 {[%clk 0:00:11]}  g6 {[%clk 0:00:12]} 33. f3 {[%clk 0:00:11]}  Rd2+ {[%clk 0:00:12]} 34. Ke3 {[%clk 0:00:11]}  Rg2 {[%clk 0:00:10]} 35. g4 {[%clk 0:00:10]}  Rc2 {[%clk 0:00:11]} 36. h5 {[%clk 0:00:10]}  Rc3+ {[%clk 0:00:09]} 37. Kf4 {[%clk 0:00:09]}  Rxf3+ {[%clk 0:00:09]} 38. Kg5 {[%clk 0:00:08]}  gxh5 {[%clk 0:00:06]} 39. gxh5 {[%clk 0:00:08]}  Rf5+ {[%clk 0:00:06]} 40. Kh6 {[%clk 0:00:08]}  Nxc5 {[%clk 0:00:06]} 41. Bxc5 {[%clk 0:00:07]}  Rxc5 {[%clk 0:00:07]} 42. Rxb7 {[%clk 0:00:07]}  Rf5 {[%clk 0:00:07]} 43. Ra7+ {[%clk 0:00:07]}  Kb5 {[%clk 0:00:07]} 44. a4+ {[%clk 0:00:08]}  Kb6 {[%clk 0:00:07]} 45. Ra8 {[%clk 0:00:08]}  Kb7 {[%clk 0:00:07]} 46. Rh8 {[%clk 0:00:08]}  e5 {[%clk 0:00:06]} 47. Rxh7 {[%clk 0:00:09]}  e4 {[%clk 0:00:07]} 48. Rh8 {[%clk 0:00:08]}  e3 {[%clk 0:00:07]} 49. Re8 {[%clk 0:00:08]}  Rf3 {[%clk 0:00:07]} 50. Kg7 {[%clk 0:00:08]}  f5 {[%clk 0:00:05]} 51. h6 {[%clk 0:00:08]}  f4 {[%clk 0:00:06]} 52. h7 {[%clk 0:00:08]}  Rg3+ {[%clk 0:00:06]} 53. Kf6 {[%clk 0:00:09]}  Rh3 {[%clk 0:00:07]} 54. Re7+ {[%clk 0:00:06]}  Kb6 {[%clk 0:00:07]} 55. Kf5 {[%clk 0:00:06]}  e2 {[%clk 0:00:04]} 56. Kxf4 {[%clk 0:00:04]}  e1=Q {[%clk 0:00:04]} 57. Rxe1 {[%clk 0:00:03]}  Rxh7 {[%clk 0:00:05]} 58. Ra1 {[%clk 0:00:04]}  Rh4+ {[%clk 0:00:05]} 59. Ke5 {[%clk 0:00:04]}  Ka5 {[%clk 0:00:05]} 60. Kd5 {[%clk 0:00:05]}  Rxa4 {[%clk 0:00:06]} 61. Rc1 {[%clk 0:00:05]}  Rb4 {[%clk 0:00:06]} 62. Kc5 {[%clk 0:00:05]}  Rb5+ {[%clk 0:00:06]} 63. Kc4 {[%clk 0:00:06]}  Rb4+ {[%clk 0:00:07]} 64. Kc3 {[%clk 0:00:06]}  Rb5 {[%clk 0:00:08]} 65. Rh1 {[%clk 0:00:06]}  Kb6 {[%clk 0:00:08]} 66. Kc4 {[%clk 0:00:06]}  Rc5+ {[%clk 0:00:09]} 67. Kd4 {[%clk 0:00:07]}  Rc6 {[%clk 0:00:09]} 68. Rh5 {[%clk 0:00:07]}  Kc7 {[%clk 0:00:10]} 69. Kd5 {[%clk 0:00:06]}  Kb6 {[%clk 0:00:11]} 70. Rh8 {[%clk 0:00:06]}  Rc5+ {[%clk 0:00:12]} 71. Kd4 {[%clk 0:00:07]}  Rc6 {[%clk 0:00:12]} 72. Rb8+ {[%clk 0:00:07]}  Kc7 {[%clk 0:00:12]} 73. Rb1 {[%clk 0:00:07]}  Rd6+ {[%clk 0:00:12]} 74. Kc5 {[%clk 0:00:08]}  Rc6+ {[%clk 0:00:13]} 75. Kd5 {[%clk 0:00:08]}  Rd6+ {[%clk 0:00:14]} 76. Ke5 {[%clk 0:00:09]}  Kd7 {[%clk 0:00:14]} 77. Rb7+ {[%clk 0:00:09]}  Kc6 {[%clk 0:00:15]} 78. Ra7 {[%clk 0:00:10]}  Rd5+ {[%clk 0:00:15]} 79. Ke4 {[%clk 0:00:09]}  Rd6 {[%clk 0:00:15]} 80. Ra6+ {[%clk 0:00:10]}  Kd7 {[%clk 0:00:16]} 81. Ra1 {[%clk 0:00:07]}  Ke6 {[%clk 0:00:16]} 1/2-1/2

[Event "December 5 Late 2023"]
[Site "https://www.chess.com"]
[Date "2023.12.05"]
[Round "7"]
[White "Rios Escobar, Adan"]
[Black "Agibileg, Uurtsaikh"]
[Result "0-1"]
[Board "70"]
[TimeControl "180+1"]
[WhiteFideId "3403645"]
[BlackFideId "4901606"]
[WhiteElo "2454"]
[BlackElo "2621"]
[WhiteTeam "CHI"]
[BlackTeam "MGL"]
[WhiteClock "0:00:01"]
[BlackClock "0:00:02"]

1. Nf3 {[%clk 0:02:57]}  d5 {[%clk 0:02:55]} 2. e3 {[%clk 0:02:53]}  Nf6 {[%clk 0:02:53]} 3. c4 {[%clk 0:02:50]}  e6 {[%clk 0:02:52]} 4. Nc3 {[%clk 0:02:48]}  Be7 {[%clk 0:02:51]} 5. b3 {[%clk 0:02:48]}  O-O {[%clk 0:02:51]} 6. Bb2 {[%clk 0:02:48]}  b6 {[%clk 0:02:51]} 7. cxd5 {[%clk 0:02:32]}  exd5 {[%clk 0:02:50]} 8. Rc1 {[%clk 0:02:23]}  c5 {[%clk 0:02:49]} 9. d4 {[%clk 0:02:08]}  Bb7 {[%clk 0:02:49]} 10. Bd3 {[%clk 0:02:00]}  Nc6 {[%clk 0:02:23]} 11. Ne2 {[%clk 0:01:41]}  Rc8 {[%clk 0:02:20]} 12. O-O {[%clk 0:01:40]}  Bd6 {[%clk 0:02:00]} 13. Ne5 {[%clk 0:01:20]}  Qe7 {[%clk 0:01:46]} 14. f4 {[%clk 0:01:09]}  Ne4 {[%clk 0:01:27]} 15. Ng3 {[%clk 0:00:55]}  Nxg3 {[%clk 0:01:00]} 16. hxg3 {[%clk 0:00:54]}  f6 {[%clk 0:01:00]} 17. Ng6 {[%clk 0:00:06]}  Qxe3+ {[%clk 0:00:19]} 18. Kh2 {[%clk 0:00:06]}  Rfe8 {[%clk 0:00:20]} 19. Bb1 {[%clk 0:00:01]}  hxg6 {[%clk 0:00:15]} 20. Bxg6 {[%clk 0:00:02]}  Ne7 {[%clk 0:00:14]} 21. Bxe8 {[%clk 0:00:01]}  Rxe8 {[%clk 0:00:15]} 22. Qh5 {[%clk 0:00:02]}  g6 {[%clk 0:00:08]} 23. Qh4 {[%clk 0:00:02]}  Kg7 {[%clk 0:00:06]} 24. Rce1 {[%clk 0:00:02]}  Qd2 {[%clk 0:00:05]} 25. dxc5 {[%clk 0:00:03]}  Qxb2 {[%clk 0:00:04]} 26. cxd6 {[%clk 0:00:03]}  Nf5 {[%clk 0:00:04]} 27. Qg4 {[%clk 0:00:02]}  Rh8+ {[%clk 0:00:04]} 28. Kg1 {[%clk 0:00:02]}  Qd4+ {[%clk 0:00:04]} 29. Rf2 {[%clk 0:00:01]}  Bc8 {[%clk 0:00:04]} 30. d7 {[%clk 0:00:01]}  Bxd7 {[%clk 0:00:04]} 31. Re7+ {[%clk 0:00:02]}  Nxe7 {[%clk 0:00:03]} 32. Qxd7 {[%clk 0:00:02]}  Qd1+ {[%clk 0:00:03]} 33. Rf1 {[%clk 0:00:02]}  Rh1+ {[%clk 0:00:04]} 34. Kxh1 {[%clk 0:00:03]}  Qxf1+ {[%clk 0:00:04]} 35. Kh2 {[%clk 0:00:03]}  Kf7 {[%clk 0:00:05]} 36. Qxa7 {[%clk 0:00:03]}  b5 {[%clk 0:00:04]} 37. Qa6 {[%clk 0:00:03]}  Qe2 {[%clk 0:00:04]} 38. a4 {[%clk 0:00:03]}  d4 {[%clk 0:00:04]} 39. axb5 {[%clk 0:00:02]}  Qd3 {[%clk 0:00:03]} 40. b4 {[%clk 0:00:01]}  Qc4 {[%clk 0:00:03]} 41. Qa3 {[%clk 0:00:01]}  Qxb5 {[%clk 0:00:02]} 42. Qb3+ {[%clk 0:00:02]}  Qd5 {[%clk 0:00:03]} 43. Qd3 {[%clk 0:00:02]}  Nf5 {[%clk 0:00:02]} 44. b5 {[%clk 0:00:02]}  Ne3 {[%clk 0:00:02]} 45. b6 {[%clk 0:00:01]}  Qxg2# {[%clk 0:00:02]} 0-1

[Event "December 5 Late 2023"]
[Site "https://www.chess.com"]
[Date "2023.12.05"]
[Round "7"]
[White "Play, Gilles"]
[Black "Osmak, Yuliia"]
[Result "1-0"]
[Board "75"]
[TimeControl "180+1"]
[WhiteFideId "45130892"]
[BlackFideId "14101602"]
[WhiteElo "2425"]
[BlackElo "2570"]
[WhiteTeam "FRA"]
[BlackTeam "UKR"]
[WhiteClock "0:00:41"]
[BlackClock "0:00:12"]

1. e4 {[%clk 0:03:00]}  e6 {[%clk 0:02:58]} 2. d4 {[%clk 0:02:59]}  d5 {[%clk 0:02:59]} 3. Nc3 {[%clk 0:02:59]}  Nf6 {[%clk 0:02:57]} 4. e5 {[%clk 0:02:59]}  Nfd7 {[%clk 0:02:57]} 5. f4 {[%clk 0:02:59]}  c5 {[%clk 0:02:57]} 6. Nf3 {[%clk 0:03:00]}  Nc6 {[%clk 0:02:57]} 7. Be3 {[%clk 0:03:01]}  b6 {[%clk 0:02:50]} 8. Bb5 {[%clk 0:02:54]}  Bb7 {[%clk 0:02:46]} 9. f5 {[%clk 0:02:52]}  Be7 {[%clk 0:02:38]} 10. O-O {[%clk 0:02:42]}  cxd4 {[%clk 0:02:31]} 11. fxe6 {[%clk 0:02:30]}  dxe3 {[%clk 0:02:18]} 12. exf7+ {[%clk 0:02:05]}  Kf8 {[%clk 0:02:17]} 13. Bxc6 {[%clk 0:02:00]}  Bxc6 {[%clk 0:02:15]} 14. Nd4 {[%clk 0:02:00]}  Nc5 {[%clk 0:01:59]} 15. Nxc6 {[%clk 0:01:52]}  Qc7 {[%clk 0:01:53]} 16. Qxd5 {[%clk 0:01:35]}  Rc8 {[%clk 0:01:47]} 17. Nxe7 {[%clk 0:01:32]}  Qxe7 {[%clk 0:01:48]} 18. Rae1 {[%clk 0:01:26]}  Rd8 {[%clk 0:01:44]} 19. Qc4 {[%clk 0:01:25]}  Qxe5 {[%clk 0:01:42]} 20. b4 {[%clk 0:01:23]}  Ne6 {[%clk 0:01:21]} 21. Nd1 {[%clk 0:01:08]}  e2 {[%clk 0:00:47]} 22. Rxe2 {[%clk 0:00:56]}  Qd4+ {[%clk 0:00:46]} 23. Qxd4 {[%clk 0:00:55]}  Nxd4 {[%clk 0:00:47]} 24. Re4 {[%clk 0:00:49]}  Nxc2 {[%clk 0:00:34]} 25. Nc3 {[%clk 0:00:43]}  h5 {[%clk 0:00:27]} 26. Nd5 {[%clk 0:00:42]}  Rh6 {[%clk 0:00:20]} 27. Nc7 {[%clk 0:00:42]}  Nd4 {[%clk 0:00:12]} 28. Re8+ {[%clk 0:00:41]} 1-0

[Event "December 5 Late 2023"]
[Site "https://www.chess.com"]
[Date "2023.12.05"]
[Round "7"]
[White "Soderstrom, Adrian"]
[Black "Donchenko, Anatoly"]
[Result "1-0"]
[Board "76"]
[TimeControl "180+1"]
[WhiteFideId "1745786"]
[BlackFideId "4106091"]
[WhiteElo "2562"]
[BlackElo "2425"]
[WhiteTeam "SWE"]
[BlackTeam "GER"]
[WhiteClock "0:00:21"]
[BlackClock "0:00:00"]

1. Nf3 {[%clk 0:03:00]}  Nf6 {[%clk 0:02:58]} 2. c4 {[%clk 0:03:00]}  e6 {[%clk 0:02:58]} 3. g3 {[%clk 0:02:55]}  d5 {[%clk 0:02:57]} 4. d4 {[%clk 0:02:55]}  Be7 {[%clk 0:02:57]} 5. Bg2 {[%clk 0:02:55]}  O-O {[%clk 0:02:56]} 6. O-O {[%clk 0:02:56]}  b6 {[%clk 0:02:56]} 7. cxd5 {[%clk 0:02:52]}  Nxd5 {[%clk 0:02:55]} 8. e4 {[%clk 0:02:52]}  Nf6 {[%clk 0:02:55]} 9. Nc3 {[%clk 0:02:52]}  Bb7 {[%clk 0:02:55]} 10. Qc2 {[%clk 0:02:46]}  Nbd7 {[%clk 0:02:53]} 11. Bf4 {[%clk 0:02:39]}  c5 {[%clk 0:02:52]} 12. Rad1 {[%clk 0:02:37]}  cxd4 {[%clk 0:02:50]} 13. Nxd4 {[%clk 0:02:37]}  e5 {[%clk 0:02:37]} 14. Nf5 {[%clk 0:01:57]}  exf4 {[%clk 0:02:36]} 15. e5 {[%clk 0:01:58]}  Bxg2 {[%clk 0:02:34]} 16. exf6 {[%clk 0:01:59]}  Bxf6 {[%clk 0:02:32]} 17. Kxg2 {[%clk 0:01:57]}  f3+ {[%clk 0:02:21]} 18. Kxf3 {[%clk 0:01:51]}  Rc8 {[%clk 0:02:05]} 19. Nd6 {[%clk 0:01:42]}  Rc6 {[%clk 0:01:54]} 20. Kg2 {[%clk 0:01:41]}  Bxc3 {[%clk 0:01:53]} 21. bxc3 {[%clk 0:01:41]}  Qc7 {[%clk 0:01:48]} 22. Nb5 {[%clk 0:01:26]}  Qb7 {[%clk 0:01:48]} 23. Kg1 {[%clk 0:01:22]}  Ne5 {[%clk 0:01:36]} 24. Qe4 {[%clk 0:01:15]}  Qe7 {[%clk 0:01:20]} 25. Rfe1 {[%clk 0:01:08]}  Re6 {[%clk 0:01:16]} 26. Re3 {[%clk 0:00:50]}  Qf6 {[%clk 0:01:09]} 27. Nd4 {[%clk 0:00:45]}  Ree8 {[%clk 0:01:05]} 28. Rde1 {[%clk 0:00:44]}  g6 {[%clk 0:00:59]} 29. Qd5 {[%clk 0:00:41]}  Nf3+ {[%clk 0:00:30]} 30. Qxf3 {[%clk 0:00:39]}  Qxf3 {[%clk 0:00:29]} 31. Nxf3 {[%clk 0:00:39]}  Rc8 {[%clk 0:00:28]} 32. Nd4 {[%clk 0:00:34]}  Rc5 {[%clk 0:00:27]} 33. Re7 {[%clk 0:00:24]}  Ra5 {[%clk 0:00:26]} 34. Nc6 {[%clk 0:00:22]}  Rxa2 {[%clk 0:00:25]} 35. Rxa7 {[%clk 0:00:22]}  Rc2 {[%clk 0:00:21]} 36. Rc7 {[%clk 0:00:20]}  Kg7 {[%clk 0:00:21]} 37. Nd4 {[%clk 0:00:20]}  Ra2 {[%clk 0:00:20]} 38. Ne6+ {[%clk 0:00:21]}  Kg8 {[%clk 0:00:18]} 39. Nxf8 {[%clk 0:00:22]}  Kxf8 {[%clk 0:00:00]} 40. Ree7 {[%clk 0:00:21]} 1-0

[Event "December 5 Late 2023"]
[Site "https://www.chess.com"]
[Date "2023.12.05"]
[Round "7"]
[White "Lopusiewicz, Piotr"]
[Black "Veljanoski, Andrej"]
[Result "1-0"]
[Board "77"]
[TimeControl "180+1"]
[WhiteFideId "1116029"]
[BlackFideId "15003604"]
[WhiteElo "2421"]
[BlackElo "2553"]
[WhiteTeam "POL"]
[BlackTeam "MKD"]
[WhiteClock "0:00:53"]
[BlackClock "0:00:53"]

1. d4 {[%clk 0:03:00]}  b6 {[%clk 0:02:59]} 2. e4 {[%clk 0:03:00]}  Bb7 {[%clk 0:03:00]} 3. Bd3 {[%clk 0:03:01]}  g6 {[%clk 0:03:01]} 4. Nf3 {[%clk 0:02:59]}  Bg7 {[%clk 0:03:01]} 5. Be3 {[%clk 0:02:59]}  d6 {[%clk 0:03:02]} 6. c4 {[%clk 0:02:58]}  Nd7 {[%clk 0:03:01]} 7. Nc3 {[%clk 0:02:58]}  e5 {[%clk 0:03:01]} 8. Qd2 {[%clk 0:02:57]}  exd4 {[%clk 0:03:01]} 9. Nxd4 {[%clk 0:02:56]}  Ne5 {[%clk 0:02:59]} 10. Be2 {[%clk 0:02:54]}  Nf6 {[%clk 0:02:56]} 11. f3 {[%clk 0:02:51]}  Qe7 {[%clk 0:02:55]} 12. O-O-O {[%clk 0:02:47]}  h6 {[%clk 0:02:55]} 13. Kb1 {[%clk 0:02:47]}  O-O-O {[%clk 0:02:54]} 14. Nd5 {[%clk 0:02:45]}  Qd7 {[%clk 0:02:42]} 15. Nb5 {[%clk 0:02:31]}  Nxd5 {[%clk 0:02:32]} 16. cxd5 {[%clk 0:02:31]}  Kb8 {[%clk 0:02:26]} 17. Rc1 {[%clk 0:02:23]}  Rc8 {[%clk 0:02:25]} 18. Nd4 {[%clk 0:02:19]}  c5 {[%clk 0:02:09]} 19. dxc6 {[%clk 0:02:17]}  Bxc6 {[%clk 0:02:10]} 20. Nxc6+ {[%clk 0:02:00]}  Rxc6 {[%clk 0:02:08]} 21. Rxc6 {[%clk 0:02:00]}  Qxc6 {[%clk 0:02:02]} 22. Rc1 {[%clk 0:01:58]}  Qd7 {[%clk 0:02:00]} 23. Ba6 {[%clk 0:01:52]}  d5 {[%clk 0:01:58]} 24. Qxd5 {[%clk 0:01:43]}  Qxd5 {[%clk 0:01:57]} 25. exd5 {[%clk 0:01:44]}  Rd8 {[%clk 0:01:56]} 26. Bd4 {[%clk 0:01:25]}  Nd3 {[%clk 0:01:28]} 27. Bxg7 {[%clk 0:01:20]}  Nxc1 {[%clk 0:01:28]} 28. Be5+ {[%clk 0:01:17]}  Ka8 {[%clk 0:01:28]} 29. Bb5 {[%clk 0:01:09]}  Kb7 {[%clk 0:01:28]} 30. Bc6+ {[%clk 0:01:09]}  Ka6 {[%clk 0:01:28]} 31. Kxc1 {[%clk 0:01:09]}  b5 {[%clk 0:01:27]} 32. Kc2 {[%clk 0:01:08]}  Kb6 {[%clk 0:01:27]} 33. Bd4+ {[%clk 0:01:07]}  Ka6 {[%clk 0:01:27]} 34. b4 {[%clk 0:01:05]}  f5 {[%clk 0:01:23]} 35. f4 {[%clk 0:01:04]}  g5 {[%clk 0:01:23]} 36. g3 {[%clk 0:01:02]}  gxf4 {[%clk 0:01:23]} 37. gxf4 {[%clk 0:01:03]}  h5 {[%clk 0:01:23]} 38. Be5 {[%clk 0:00:59]}  Kb6 {[%clk 0:01:18]} 39. Bd4+ {[%clk 0:00:57]}  Ka6 {[%clk 0:01:19]} 40. Kb3 {[%clk 0:00:54]}  h4 {[%clk 0:01:18]} 41. a4 {[%clk 0:00:54]}  bxa4+ {[%clk 0:01:15]} 42. Kxa4 {[%clk 0:00:54]}  h3 {[%clk 0:00:53]} 43. b5# {[%clk 0:00:53]} 1-0